[Event "Early-Titled-Tuesday-Blitz-May-14-2024"]
[Site "Chess.com"]
[Date "2024.05.14"]
[Round "6"]
[White "ChessQueen"]
[Black "BelyakovBogdan"]
[Result "1/2-1/2"]
[WhiteElo "2774"]
[BlackElo "2599"]
[TimeControl "180+1"]
[EndTime "9:07:47 PDT"]
[Termination "Game drawn by repetition"]

1. e4 {[%clk 0:03:00.9]} 1... e5 {[%clk 0:02:55.7]} 2. Nf3 {[%clk 0:03:00.7]}
2... Nc6 {[%clk 0:02:53.8]} 3. Bb5 {[%clk 0:03:00.6]} 3... Nf6 {[%clk
0:02:53.5]} 4. d4 {[%clk 0:03:00.1]} 4... exd4 {[%clk 0:02:49.9]} 5. O-O {[%clk
0:02:58.5]} 5... a6 {[%clk 0:02:49.1]} 6. Ba4 {[%clk 0:02:57.8]} 6... Be7 {[%clk
0:02:48.9]} 7. e5 {[%clk 0:02:57.6]} 7... Ne4 {[%clk 0:02:48.2]} 8. Nxd4 {[%clk
0:02:58.2]} 8... O-O {[%clk 0:02:44.9]} 9. Nf5 {[%clk 0:02:56.2]} 9... Nc5
{[%clk 0:02:43.6]} 10. Bxc6 {[%clk 0:02:35.8]} 10... dxc6 {[%clk 0:02:41.7]} 11.
Nxe7+ {[%clk 0:02:36.1]} 11... Qxe7 {[%clk 0:02:41.6]} 12. Qe2 {[%clk
0:02:34.4]} 12... Re8 {[%clk 0:02:38.3]} 13. Re1 {[%clk 0:02:28.8]} 13... Bf5
{[%clk 0:02:37.3]} 14. Nc3 {[%clk 0:02:27.3]} 14... Rad8 {[%clk 0:02:35.4]} 15.
Bf4 {[%clk 0:02:21.4]} 15... Ne6 {[%clk 0:02:33.9]} 16. Be3 {[%clk 0:02:15.5]}
16... Nd4 {[%clk 0:02:33.4]} 17. Bxd4 {[%clk 0:02:15.6]} 17... Rxd4 {[%clk
0:02:34.3]} 18. h3 {[%clk 0:02:09.6]} 18... h6 {[%clk 0:02:31.1]} 19. Rac1
{[%clk 0:02:06.1]} 19... Qg5 {[%clk 0:02:29.1]} 20. Qf3 {[%clk 0:01:59.1]} 20...
Bg6 {[%clk 0:02:26.9]} 21. g3 {[%clk 0:01:46.3]} 21... Rxe5 {[%clk 0:02:23.9]}
22. h4 {[%clk 0:01:45.7]} 22... Qe7 {[%clk 0:02:21.1]} 23. Rxe5 {[%clk
0:01:34.3]} 23... Qxe5 {[%clk 0:02:22]} 24. Kf1 {[%clk 0:01:10.8]} 24... Bh5
{[%clk 0:02:08.6]} 25. Qe3 {[%clk 0:01:10.9]} 25... Qxe3 {[%clk 0:02:04.6]} 26.
fxe3 {[%clk 0:01:11.8]} 26... Rd2 {[%clk 0:01:50]} 27. Ne4 {[%clk 0:01:12]}
27... Rh2 {[%clk 0:01:32.3]} 28. Kg1 {[%clk 0:01:03.5]} 28... Re2 {[%clk
0:01:30.9]} 29. Nc5 {[%clk 0:01:03.5]} 29... Bf3 {[%clk 0:01:18.4]} 30. Nxb7
{[%clk 0:00:51.9]} 30... Rg2+ {[%clk 0:01:16.1]} 31. Kf1 {[%clk 0:00:52.2]}
31... Rh2 {[%clk 0:01:16.3]} 32. Ke1 {[%clk 0:00:45.1]} 32... Re2+ {[%clk
0:01:04.1]} 33. Kf1 {[%clk 0:00:45.3]} 33... Rh2 {[%clk 0:00:30.8]} 34. Ke1
{[%clk 0:00:45.5]} 34... Re2+ {[%clk 0:00:21.8]} 35. Kf1 {[%clk 0:00:45.7]}
35... Rh2 {[%clk 0:00:19.6]} 1/2-1/2

[Event "Early-Titled-Tuesday-Blitz-May-14-2024"]
[Site "Chess.com"]
[Date "2024.05.14"]
[Round "6"]
[White "Gumugama"]
[Black "MaxLeto"]
[Result "1/2-1/2"]
[WhiteElo "2282"]
[BlackElo "2419"]
[TimeControl "180+1"]
[EndTime "9:07:47 PDT"]
[Termination "Game drawn by repetition"]

1. e4 {[%clk 0:02:54.7]} 1... a6 {[%clk 0:03:00.9]} 2. d4 {[%clk 0:02:52.4]}
2... b6 {[%clk 0:03:01.8]} 3. Bd3 {[%clk 0:02:50.9]} 3... c6 {[%clk 0:03:02.7]}
4. c4 {[%clk 0:02:50]} 4... d6 {[%clk 0:03:03.1]} 5. Nc3 {[%clk 0:02:50]} 5...
e6 {[%clk 0:03:03.7]} 6. f4 {[%clk 0:02:49.8]} 6... f6 {[%clk 0:03:04.2]} 7. Nf3
{[%clk 0:02:50.1]} 7... Bb7 {[%clk 0:03:04.6]} 8. O-O {[%clk 0:02:49.9]} 8...
Nd7 {[%clk 0:03:05.3]} 9. Be3 {[%clk 0:02:49.6]} 9... Ne7 {[%clk 0:03:05.7]} 10.
b4 {[%clk 0:02:48.3]} 10... g6 {[%clk 0:03:05.9]} 11. a4 {[%clk 0:02:47.4]}
11... Bg7 {[%clk 0:03:06.5]} 12. b5 {[%clk 0:02:45.7]} 12... axb5 {[%clk
0:02:57.7]} 13. axb5 {[%clk 0:02:44.7]} 13... c5 {[%clk 0:02:57.8]} 14. d5
{[%clk 0:02:35.2]} 14... exd5 {[%clk 0:02:41.1]} 15. exd5 {[%clk 0:02:30.4]}
15... f5 {[%clk 0:02:38.4]} 16. Qc2 {[%clk 0:02:20]} 16... h6 {[%clk 0:02:32]}
17. h4 {[%clk 0:02:02.3]} 17... Nf6 {[%clk 0:02:28.1]} 18. Bd2 {[%clk
0:01:28.5]} 18... O-O {[%clk 0:02:26.1]} 19. Ne2 {[%clk 0:01:22.2]} 19... Ng4
{[%clk 0:02:22.6]} 20. Rxa8 {[%clk 0:01:20.1]} 20... Qxa8 {[%clk 0:02:22]} 21.
h5 {[%clk 0:01:10.1]} 21... gxh5 {[%clk 0:02:21.7]} 22. Nh4 {[%clk 0:01:09.7]}
22... Bc8 {[%clk 0:02:04.5]} 23. Ng3 {[%clk 0:01:05.6]} 23... Bd4+ {[%clk
0:01:59.6]} 24. Kh1 {[%clk 0:01:05.2]} 24... Nf2+ {[%clk 0:01:47.8]} 25. Kh2
{[%clk 0:01:05.1]} 25... Ng4+ {[%clk 0:01:29.5]} 26. Kh3 {[%clk 0:01:04.9]}
26... Qa3 {[%clk 0:01:13.3]} 27. Rf3 {[%clk 0:00:47]} 27... Nf2+ {[%clk
0:00:52.5]} 28. Kh2 {[%clk 0:00:47]} 28... Ng4+ {[%clk 0:00:45.6]} 29. Kh3
{[%clk 0:00:47.1]} 29... Qa1 {[%clk 0:00:37]} 30. Rf1 {[%clk 0:00:25.9]} 30...
Qa3 {[%clk 0:00:30.4]} 31. Rf3 {[%clk 0:00:25.4]} 1/2-1/2

[Event "Early-Titled-Tuesday-Blitz-May-14-2024"]
[Site "Chess.com"]
[Date "2024.05.14"]
[Round "6"]
[White "KatakuriDono"]
[Black "rodp92"]
[Result "0-1"]
[WhiteElo "2301"]
[BlackElo "2532"]
[TimeControl "180+1"]
[EndTime "9:07:50 PDT"]
[Termination "rodp92 won by checkmate"]

1. d4 {[%clk 0:03:00.9]} 1... Nf6 {[%clk 0:02:59.5]} 2. Nf3 {[%clk 0:03:00.2]}
2... e6 {[%clk 0:02:59]} 3. g3 {[%clk 0:02:58.7]} 3... d5 {[%clk 0:02:59.2]} 4.
Bg2 {[%clk 0:02:58.9]} 4... Be7 {[%clk 0:02:59.6]} 5. O-O {[%clk 0:02:59]} 5...
O-O {[%clk 0:02:59.8]} 6. c4 {[%clk 0:02:59.3]} 6... dxc4 {[%clk 0:03:00.4]} 7.
Ne5 {[%clk 0:02:59.2]} 7... Nc6 {[%clk 0:02:58.7]} 8. Nxc6 {[%clk 0:02:59.2]}
8... bxc6 {[%clk 0:02:59.3]} 9. Na3 {[%clk 0:02:59.6]} 9... Bxa3 {[%clk
0:02:56.7]} 10. bxa3 {[%clk 0:03:00.5]} 10... Nd5 {[%clk 0:02:55.9]} 11. Qa4
{[%clk 0:03:00]} 11... Nb6 {[%clk 0:02:43.3]} 12. Qxc6 {[%clk 0:02:59.5]} 12...
Rb8 {[%clk 0:02:40.9]} 13. Rd1 {[%clk 0:02:49.2]} 13... Bb7 {[%clk 0:02:37.1]}
14. Qc5 {[%clk 0:02:41.2]} 14... Bxg2 {[%clk 0:02:35.4]} 15. Kxg2 {[%clk
0:02:42.1]} 15... Qd5+ {[%clk 0:02:31.1]} 16. f3 {[%clk 0:02:39.7]} 16... Rfd8
{[%clk 0:02:22.7]} 17. Bf4 {[%clk 0:02:21.9]} 17... Qxc5 {[%clk 0:02:19.2]} 18.
dxc5 {[%clk 0:02:21.8]} 18... Nd5 {[%clk 0:02:19.8]} 19. Rdc1 {[%clk 0:02:01.5]}
19... Rb2 {[%clk 0:02:09.2]} 20. Rxc4 {[%clk 0:01:36.4]} 20... Rxe2+ {[%clk
0:02:03.1]} 21. Kh3 {[%clk 0:01:21.4]} 21... e5 {[%clk 0:01:49.4]} 22. Bg5
{[%clk 0:01:13.6]} 22... f6 {[%clk 0:01:47.8]} 23. Bc1 {[%clk 0:01:08]} 23...
Kf7 {[%clk 0:01:20.1]} 24. Rb1 {[%clk 0:01:07.2]} 24... Ne7 {[%clk 0:01:10.5]}
25. Rb7 {[%clk 0:01:01.5]} 25... Rd1 {[%clk 0:01:10.5]} 26. Rxc7 {[%clk
0:00:33.6]} 26... Rh1 {[%clk 0:01:09.3]} 27. Rxe7+ {[%clk 0:00:18.6]} 27... Kxe7
{[%clk 0:01:09.3]} 28. c6 {[%clk 0:00:18]} 28... Rhxh2+ {[%clk 0:00:49.8]} 29.
Kg4 {[%clk 0:00:17.7]} 29... h5+ {[%clk 0:00:50.2]} 30. Kf5 {[%clk 0:00:17.2]}
30... Kf7 {[%clk 0:00:49]} 31. c7 {[%clk 0:00:04.1]} 31... g6# {[%clk
0:00:48.5]} 0-1

[Event "Early-Titled-Tuesday-Blitz-May-14-2024"]
[Site "Chess.com"]
[Date "2024.05.14"]
[Round "6"]
[White "Tolyanius"]
[Black "ATM622"]
[Result "1-0"]
[WhiteElo "2670"]
[BlackElo "2547"]
[TimeControl "180+1"]
[EndTime "9:07:51 PDT"]
[Termination "Tolyanius won by checkmate"]

1. e4 {[%clk 0:03:00.9]} 1... c6 {[%clk 0:02:59.7]} 2. c4 {[%clk 0:03:00.3]}
2... e5 {[%clk 0:02:55.6]} 3. Nc3 {[%clk 0:02:59.3]} 3... Nf6 {[%clk 0:02:55.3]}
4. d4 {[%clk 0:02:48.2]} 4... exd4 {[%clk 0:02:51.1]} 5. Qxd4 {[%clk 0:02:47.7]}
5... c5 {[%clk 0:02:50.8]} 6. Qd2 {[%clk 0:02:43.2]} 6... Nc6 {[%clk 0:02:50.5]}
7. b3 {[%clk 0:02:41.2]} 7... g6 {[%clk 0:02:41.9]} 8. Bb2 {[%clk 0:02:41.5]}
8... Bg7 {[%clk 0:02:41.8]} 9. Bd3 {[%clk 0:02:29.4]} 9... O-O {[%clk
0:02:40.1]} 10. Nge2 {[%clk 0:02:30.1]} 10... Re8 {[%clk 0:02:37.4]} 11. O-O
{[%clk 0:02:20.7]} 11... d6 {[%clk 0:02:26.5]} 12. Rad1 {[%clk 0:02:20]} 12...
Ng4 {[%clk 0:02:10.4]} 13. Bb1 {[%clk 0:01:50]} 13... Nd4 {[%clk 0:01:55.7]} 14.
h3 {[%clk 0:01:41.3]} 14... Ne5 {[%clk 0:01:46.8]} 15. f4 {[%clk 0:01:40.8]}
15... Nec6 {[%clk 0:01:46.8]} 16. Nb5 {[%clk 0:01:34.2]} 16... Qb6 {[%clk
0:01:11.1]} 17. Nbxd4 {[%clk 0:01:27.9]} 17... cxd4 {[%clk 0:01:07.4]} 18. Nxd4
{[%clk 0:01:24.7]} 18... g5 {[%clk 0:00:35.6]} 19. fxg5 {[%clk 0:00:55.5]} 19...
Ne5 {[%clk 0:00:33]} 20. Kh1 {[%clk 0:00:54.8]} 20... Bd7 {[%clk 0:00:28.5]} 21.
Nf5 {[%clk 0:00:54.7]} 21... Bxf5 {[%clk 0:00:25]} 22. exf5 {[%clk 0:00:55.6]}
22... Nxc4 {[%clk 0:00:21.5]} 23. bxc4 {[%clk 0:00:45.4]} 23... Qxb2 {[%clk
0:00:21.7]} 24. Qxd6 {[%clk 0:00:37.7]} 24... Be5 {[%clk 0:00:21.4]} 25. Qh6
{[%clk 0:00:36.8]} 25... Bg7 {[%clk 0:00:15.3]} 26. Qh5 {[%clk 0:00:35.8]} 26...
Re2 {[%clk 0:00:14.2]} 27. f6 {[%clk 0:00:32]} 27... Rxg2 {[%clk 0:00:13.6]} 28.
Qxh7+ {[%clk 0:00:32.1]} 28... Kf8 {[%clk 0:00:13.7]} 29. Qxg7+ {[%clk
0:00:32.6]} 29... Ke8 {[%clk 0:00:14]} 30. Qg8# {[%clk 0:00:32.7]} 1-0

[Event "Early-Titled-Tuesday-Blitz-May-14-2024"]
[Site "Chess.com"]
[Date "2024.05.14"]
[Round "6"]
[White "cthulhuuu"]
[Black "becemix"]
[Result "1-0"]
[WhiteElo "2453"]
[BlackElo "2589"]
[TimeControl "180+1"]
[EndTime "9:07:51 PDT"]
[Termination "cthulhuuu won on time"]

1. e4 {[%clk 0:03:00.1]} 1... e5 {[%clk 0:02:59.4]} 2. Nf3 {[%clk 0:03:00.4]}
2... Nc6 {[%clk 0:02:59.7]} 3. d3 {[%clk 0:03:00.9]} 3... Nf6 {[%clk 0:02:57.7]}
4. g3 {[%clk 0:03:01.4]} 4... Bc5 {[%clk 0:02:55]} 5. Bg2 {[%clk 0:03:01.7]}
5... d6 {[%clk 0:02:55.1]} 6. O-O {[%clk 0:03:02.5]} 6... h6 {[%clk 0:02:52.1]}
7. c3 {[%clk 0:03:03.1]} 7... a6 {[%clk 0:02:48.7]} 8. b4 {[%clk 0:03:02.7]}
8... Ba7 {[%clk 0:02:48.4]} 9. a4 {[%clk 0:03:03.1]} 9... O-O {[%clk 0:02:47.8]}
10. Nbd2 {[%clk 0:03:03.8]} 10... Be6 {[%clk 0:02:36.4]} 11. Bb2 {[%clk
0:03:03.4]} 11... d5 {[%clk 0:02:36.4]} 12. b5 {[%clk 0:02:53.1]} 12... Ne7
{[%clk 0:02:25.8]} 13. Nxe5 {[%clk 0:02:52.2]} 13... c6 {[%clk 0:02:18.8]} 14.
bxa6 {[%clk 0:02:39.4]} 14... bxa6 {[%clk 0:02:17.8]} 15. Ba3 {[%clk 0:02:40]}
15... Rc8 {[%clk 0:02:16.2]} 16. Rb1 {[%clk 0:02:38.3]} 16... Bb8 {[%clk
0:02:13.9]} 17. Rxb8 {[%clk 0:02:32.7]} 17... Rxb8 {[%clk 0:02:10.3]} 18. Bxe7
{[%clk 0:02:33]} 18... Qxe7 {[%clk 0:02:10.7]} 19. Nxc6 {[%clk 0:02:33.7]} 19...
Qc7 {[%clk 0:02:05.8]} 20. Nxb8 {[%clk 0:02:33.7]} 20... Rxb8 {[%clk 0:02:06.5]}
21. c4 {[%clk 0:02:31.6]} 21... dxc4 {[%clk 0:02:00.2]} 22. Nxc4 {[%clk
0:02:32.5]} 22... Bxc4 {[%clk 0:02:00]} 23. dxc4 {[%clk 0:02:32.4]} 23... Qxc4
{[%clk 0:01:59.4]} 24. e5 {[%clk 0:02:26.6]} 24... Ne4 {[%clk 0:01:37.5]} 25.
Re1 {[%clk 0:02:10.5]} 25... Nc5 {[%clk 0:01:35]} 26. Qd6 {[%clk 0:01:42.6]}
26... Re8 {[%clk 0:01:21]} 27. Qc6 {[%clk 0:01:28.3]} 27... Re6 {[%clk
0:01:08.6]} 28. Qa8+ {[%clk 0:01:16.5]} 28... Kh7 {[%clk 0:01:08.4]} 29. Bd5
{[%clk 0:01:16.5]} 29... Qc3 {[%clk 0:01:08.5]} 30. Re3 {[%clk 0:01:16.6]} 30...
Qc1+ {[%clk 0:00:33.3]} 31. Kg2 {[%clk 0:01:16.6]} 31... Re7 {[%clk 0:00:33.9]}
32. Qf8 {[%clk 0:01:04.3]} 1-0

[Event "Early-Titled-Tuesday-Blitz-May-14-2024"]
[Site "Chess.com"]
[Date "2024.05.14"]
[Round "6"]
[White "FoggyMorning"]
[Black "FaustinoOro"]
[Result "0-1"]
[WhiteElo "2611"]
[BlackElo "2943"]
[TimeControl "180+1"]
[EndTime "9:07:52 PDT"]
[Termination "FaustinoOro won by resignation"]

1. e4 {[%clk 0:03:00.9]} 1... e5 {[%clk 0:03:00.1]} 2. Nf3 {[%clk 0:03:00.8]}
2... Nc6 {[%clk 0:03:00.4]} 3. Bc4 {[%clk 0:03:01.5]} 3... Bc5 {[%clk
0:02:59.3]} 4. d3 {[%clk 0:03:00.8]} 4... Nf6 {[%clk 0:02:59.5]} 5. Nc3 {[%clk
0:02:59.1]} 5... O-O {[%clk 0:02:58.5]} 6. O-O {[%clk 0:02:58.1]} 6... h6 {[%clk
0:02:58]} 7. h3 {[%clk 0:02:56.5]} 7... a6 {[%clk 0:02:55.2]} 8. a4 {[%clk
0:02:56.8]} 8... d6 {[%clk 0:02:55.3]} 9. Be3 {[%clk 0:02:57.3]} 9... Qe7 {[%clk
0:02:45.3]} 10. Bxc5 {[%clk 0:02:48.7]} 10... dxc5 {[%clk 0:02:46.2]} 11. Nd5
{[%clk 0:02:49.2]} 11... Qd6 {[%clk 0:02:42.7]} 12. c3 {[%clk 0:02:33.1]} 12...
Nxd5 {[%clk 0:02:29.8]} 13. Bxd5 {[%clk 0:02:29.8]} 13... Ne7 {[%clk 0:02:29.7]}
14. Ba2 {[%clk 0:02:25.4]} 14... Rd8 {[%clk 0:02:28.7]} 15. Qe2 {[%clk
0:01:56.4]} 15... Ng6 {[%clk 0:02:27]} 16. Rad1 {[%clk 0:01:43.4]} 16... Nf4
{[%clk 0:02:23.1]} 17. Qe3 {[%clk 0:01:43.9]} 17... Qg6 {[%clk 0:02:14.4]} 18.
g3 {[%clk 0:01:06.2]} 18... Nxh3+ {[%clk 0:02:12.9]} 19. Kh2 {[%clk 0:01:02.2]}
19... Qh5 {[%clk 0:02:11.2]} 20. Kg2 {[%clk 0:00:52.6]} 20... Bg4 {[%clk
0:02:03.4]} 21. Rh1 {[%clk 0:00:48.7]} 21... Rd6 {[%clk 0:01:50.5]} 22. Rd2
{[%clk 0:00:24.3]} 22... Rg6 {[%clk 0:01:23.3]} 23. Nh4 {[%clk 0:00:18.7]} 23...
Rf6 {[%clk 0:01:13.1]} 24. f3 {[%clk 0:00:07.3]} 24... Bd7 {[%clk 0:01:05.5]}
25. Nf5 {[%clk 0:00:07.6]} 25... Qg5 {[%clk 0:00:56.5]} 26. Rxh3 {[%clk
0:00:06.8]} 26... Bxf5 {[%clk 0:00:56.7]} 27. Qxg5 {[%clk 0:00:06.5]} 27...
Bxh3+ {[%clk 0:00:57.3]} 28. Kxh3 {[%clk 0:00:06.5]} 28... hxg5 {[%clk
0:00:58.2]} 29. Kg4 {[%clk 0:00:06.9]} 29... Rd8 {[%clk 0:00:57.7]} 30. Bd5
{[%clk 0:00:06.3]} 30... c6 {[%clk 0:00:58.1]} 31. Bb3 {[%clk 0:00:06.6]} 31...
Rfd6 {[%clk 0:00:55.7]} 32. Bc2 {[%clk 0:00:04.8]} 32... c4 {[%clk 0:00:55.7]}
33. d4 {[%clk 0:00:03.1]} 33... exd4 {[%clk 0:00:55.9]} 34. cxd4 {[%clk
0:00:03.4]} 34... Rxd4 {[%clk 0:00:56.3]} 35. Rh2 {[%clk 0:00:03.1]} 35... Rd2
{[%clk 0:00:56.5]} 0-1

[Event "Early-Titled-Tuesday-Blitz-May-14-2024"]
[Site "Chess.com"]
[Date "2024.05.14"]
[Round "6"]
[White "JERO-8914"]
[Black "Darko-Dimitrijevic"]
[Result "1-0"]
[WhiteElo "2401"]
[BlackElo "2219"]
[TimeControl "180+1"]
[EndTime "9:07:53 PDT"]
[Termination "JERO-8914 won by resignation"]

1. c4 {[%clk 0:03:00.9]} 1... g6 {[%clk 0:02:58.1]} 2. Nc3 {[%clk 0:03:01.4]}
2... Bg7 {[%clk 0:02:57.8]} 3. d4 {[%clk 0:03:02.3]} 3... b6 {[%clk 0:02:57.6]}
4. Nf3 {[%clk 0:03:02.8]} 4... Bb7 {[%clk 0:02:57.5]} 5. e4 {[%clk 0:03:02.8]}
5... e6 {[%clk 0:02:55.8]} 6. h4 {[%clk 0:03:01.8]} 6... h5 {[%clk 0:02:53.8]}
7. Bg5 {[%clk 0:03:00.7]} 7... Ne7 {[%clk 0:02:53.1]} 8. Bd3 {[%clk 0:02:59.4]}
8... d6 {[%clk 0:02:52.7]} 9. Qe2 {[%clk 0:02:57.1]} 9... Nd7 {[%clk 0:02:52.1]}
10. O-O-O {[%clk 0:02:57.1]} 10... c5 {[%clk 0:02:39.4]} 11. d5 {[%clk
0:02:56.2]} 11... e5 {[%clk 0:02:37]} 12. Nd2 {[%clk 0:02:50.1]} 12... Nf6
{[%clk 0:02:26.7]} 13. f3 {[%clk 0:02:45.1]} 13... Qd7 {[%clk 0:02:23.8]} 14. g4
{[%clk 0:02:42.9]} 14... hxg4 {[%clk 0:02:19.4]} 15. Rdf1 {[%clk 0:02:38.5]}
15... Nh5 {[%clk 0:02:13.1]} 16. Rhg1 {[%clk 0:02:22.1]} 16... gxf3 {[%clk
0:02:02.7]} 17. Qxf3 {[%clk 0:02:20.6]} 17... f6 {[%clk 0:02:02.5]} 18. Be3
{[%clk 0:02:16.2]} 18... O-O-O {[%clk 0:02:02.1]} 19. Rf2 {[%clk 0:02:07.7]}
19... Rdf8 {[%clk 0:02:01.8]} 20. Bf1 {[%clk 0:02:07.4]} 20... Kb8 {[%clk
0:01:24.6]} 21. Bh3 {[%clk 0:02:06.7]} 21... Qd8 {[%clk 0:01:15.5]} 22. Be6
{[%clk 0:02:02.8]} 22... Bc8 {[%clk 0:01:14.1]} 23. Qg4 {[%clk 0:01:59.7]} 23...
f5 {[%clk 0:01:08.6]} 24. exf5 {[%clk 0:01:59.3]} 24... gxf5 {[%clk 0:01:08.3]}
25. Qh3 {[%clk 0:01:38.6]} 25... f4 {[%clk 0:01:08.3]} 26. Bxf4 {[%clk
0:01:38.7]} 26... Nxf4 {[%clk 0:01:00.8]} 27. Rxf4 {[%clk 0:01:37.5]} 27... Rxf4
{[%clk 0:01:00.3]} 28. Rxg7 {[%clk 0:01:37.6]} 28... Rhxh4 {[%clk 0:00:56.4]}
29. Qg3 {[%clk 0:01:37.4]} 29... Bxe6 {[%clk 0:00:54.1]} 30. dxe6 {[%clk
0:01:37.3]} 30... a6 {[%clk 0:00:47.5]} 31. Qg5 {[%clk 0:01:37.3]} 31... Nc6
{[%clk 0:00:40.9]} 32. Rg8 {[%clk 0:01:35.8]} 32... Rh1+ {[%clk 0:00:39.1]} 33.
Kc2 {[%clk 0:01:35.7]} 33... Nd4+ {[%clk 0:00:36.7]} 34. Kd3 {[%clk 0:01:30.1]}
34... Rf8 {[%clk 0:00:33.9]} 35. Qxd8+ {[%clk 0:01:28.4]} 35... Rxd8 {[%clk
0:00:27]} 36. Rxd8+ {[%clk 0:01:29.3]} 36... Kc7 {[%clk 0:00:26.8]} 37. Rd7+
{[%clk 0:01:29.9]} 37... Kc8 {[%clk 0:00:25.9]} 38. Nd5 {[%clk 0:01:29.5]} 38...
Rh3+ {[%clk 0:00:25.3]} 39. Ke4 {[%clk 0:01:23.6]} 39... Rh4+ {[%clk 0:00:23.7]}
40. Ke3 {[%clk 0:01:20.4]} 40... Rh3+ {[%clk 0:00:23.4]} 41. Kf2 {[%clk
0:01:18.4]} 41... Rh2+ {[%clk 0:00:23.5]} 42. Kg3 {[%clk 0:01:18.3]} 42... Rxd2
{[%clk 0:00:23.1]} 43. Rc7+ {[%clk 0:01:18.6]} 43... Kd8 {[%clk 0:00:20.7]} 44.
e7+ {[%clk 0:01:19.2]} 44... Ke8 {[%clk 0:00:20.6]} 45. Rc8+ {[%clk 0:01:20.1]}
45... Kf7 {[%clk 0:00:20.5]} 46. e8=Q+ {[%clk 0:01:21]} 46... Kg7 {[%clk
0:00:20.7]} 47. Qg8+ {[%clk 0:01:19.2]} 47... Kh6 {[%clk 0:00:20]} 48. Qh8+
{[%clk 0:01:19.4]} 48... Kg6 {[%clk 0:00:19.5]} 49. Rg8+ {[%clk 0:01:20.3]}
49... Kf7 {[%clk 0:00:19.1]} 50. Qh7+ {[%clk 0:01:20.6]} 50... Ke6 {[%clk
0:00:18]} 51. Rg6+ {[%clk 0:01:20.1]} 1-0

[Event "Early-Titled-Tuesday-Blitz-May-14-2024"]
[Site "Chess.com"]
[Date "2024.05.14"]
[Round "6"]
[White "Dewarfd"]
[Black "Vesper2018"]
[Result "0-1"]
[WhiteElo "2086"]
[BlackElo "2551"]
[TimeControl "180+1"]
[EndTime "9:07:54 PDT"]
[Termination "Vesper2018 won by checkmate"]

1. d4 {[%clk 0:03:00.9]} 1... Nf6 {[%clk 0:02:58.5]} 2. e3 {[%clk 0:03:00.5]}
2... g6 {[%clk 0:02:57.9]} 3. Nf3 {[%clk 0:03:00.5]} 3... Bg7 {[%clk 0:02:58.5]}
4. Be2 {[%clk 0:03:00.8]} 4... O-O {[%clk 0:02:58]} 5. b4 {[%clk 0:02:59.6]}
5... d5 {[%clk 0:02:56.6]} 6. O-O {[%clk 0:02:53.3]} 6... a5 {[%clk 0:02:56.5]}
7. b5 {[%clk 0:02:51.1]} 7... a4 {[%clk 0:02:54.2]} 8. c4 {[%clk 0:02:48]} 8...
dxc4 {[%clk 0:02:53]} 9. Bxc4 {[%clk 0:02:47]} 9... c6 {[%clk 0:02:53.5]} 10.
Bb2 {[%clk 0:02:43]} 10... cxb5 {[%clk 0:02:50.5]} 11. Bxb5 {[%clk 0:02:42.5]}
11... Qb6 {[%clk 0:02:51.1]} 12. Na3 {[%clk 0:02:26]} 12... Bd7 {[%clk
0:02:48.8]} 13. Qe2 {[%clk 0:02:25.6]} 13... Nc6 {[%clk 0:02:44.2]} 14. Rab1
{[%clk 0:02:12.9]} 14... Qa5 {[%clk 0:02:41.8]} 15. Ba1 {[%clk 0:01:54.7]} 15...
Ne4 {[%clk 0:02:31.8]} 16. Nc4 {[%clk 0:01:45.8]} 16... Qc7 {[%clk 0:02:22.3]}
17. Rfc1 {[%clk 0:01:43]} 17... e6 {[%clk 0:02:22.3]} 18. Bxc6 {[%clk
0:01:41.1]} 18... Bxc6 {[%clk 0:02:20.6]} 19. Nce5 {[%clk 0:01:40.7]} 19... Ra6
{[%clk 0:02:08.5]} 20. h3 {[%clk 0:00:57.1]} 20... Rc8 {[%clk 0:02:06.1]} 21.
Bb2 {[%clk 0:00:44.9]} 21... f6 {[%clk 0:02:04.3]} 22. Nxc6 {[%clk 0:00:43.9]}
22... Rxc6 {[%clk 0:02:04.4]} 23. Rxc6 {[%clk 0:00:42.5]} 23... Qxc6 {[%clk
0:02:04.8]} 24. Rc1 {[%clk 0:00:42.7]} 24... Qd7 {[%clk 0:02:04.4]} 25. Qd3
{[%clk 0:00:27.5]} 25... Nd6 {[%clk 0:01:57.8]} 26. Rxc8+ {[%clk 0:00:22.1]}
26... Qxc8 {[%clk 0:01:57.8]} 27. Ba3 {[%clk 0:00:22.2]} 27... Nc4 {[%clk
0:01:56.2]} 28. Qc2 {[%clk 0:00:18.5]} 28... Qc6 {[%clk 0:01:56]} 29. Bb4 {[%clk
0:00:16.4]} 29... b5 {[%clk 0:01:55.3]} 30. a3 {[%clk 0:00:16.4]} 30... Bf8
{[%clk 0:01:52.8]} 31. Bxf8 {[%clk 0:00:13.5]} 31... Kxf8 {[%clk 0:01:53]} 32.
Nd2 {[%clk 0:00:12.8]} 32... Qd5 {[%clk 0:01:52.9]} 33. Nxc4 {[%clk 0:00:10.9]}
33... Qxc4 {[%clk 0:01:52.7]} 34. Qxc4 {[%clk 0:00:10.6]} 34... bxc4 {[%clk
0:01:53.4]} 35. Kf1 {[%clk 0:00:11.5]} 35... Ke7 {[%clk 0:01:53.8]} 36. Ke2
{[%clk 0:00:12.1]} 36... Kd6 {[%clk 0:01:54.1]} 37. Kd2 {[%clk 0:00:11.9]} 37...
e5 {[%clk 0:01:47]} 38. dxe5+ {[%clk 0:00:10.9]} 38... Kxe5 {[%clk 0:01:44.3]}
39. Kc3 {[%clk 0:00:11.6]} 39... Kd5 {[%clk 0:01:44.8]} 40. Kb4 {[%clk
0:00:09.1]} 40... f5 {[%clk 0:01:35.1]} 41. f3 {[%clk 0:00:08.9]} 41... g5
{[%clk 0:01:34.3]} 42. Kxa4 {[%clk 0:00:08.7]} 42... f4 {[%clk 0:01:34.7]} 43.
exf4 {[%clk 0:00:08.7]} 43... gxf4 {[%clk 0:01:30.2]} 44. Kb4 {[%clk 0:00:08.3]}
44... Kd4 {[%clk 0:01:30.9]} 45. a4 {[%clk 0:00:07.7]} 45... c3 {[%clk
0:01:31.6]} 46. Kb3 {[%clk 0:00:06.8]} 46... Kd3 {[%clk 0:01:31.9]} 47. a5
{[%clk 0:00:07.2]} 47... c2 {[%clk 0:01:32.4]} 48. a6 {[%clk 0:00:07]} 48...
c1=Q {[%clk 0:01:32.6]} 49. a7 {[%clk 0:00:07.4]} 49... Qc4+ {[%clk 0:01:31.8]}
50. Kb2 {[%clk 0:00:06.5]} 50... Qb4+ {[%clk 0:01:31.8]} 51. Kc1 {[%clk
0:00:06.6]} 51... Qb3 {[%clk 0:01:29.9]} 52. a8=Q {[%clk 0:00:05.4]} 52... Qc2#
{[%clk 0:01:29.9]} 0-1